fUSD/lending_fUSD_20250228
["ID","MTS","AMOUNT","RATE_DAILY","PERIOD"]
[354801249,1740707530973,-1000.0,0.00057534,120]
[354801250,1740707530984,-1000.0,0.00057534,120]
[354801251,1740707530993,-1000.0,0.00057534,120]
[354801252,1740707531002,-1000.0,0.00057534,120]
[354801253,1740707531011,-1000.0,0.00057534,120]
[354801254,1740707531020,-1000.0,0.00057534,120]
[354801255,1740707531029,-1000.0,0.00057534,120]
[354801256,1740707531038,-1000.0,0.00057534,120]
[354801257,1740707531051,-1000.0,0.00057534,120]
[354801258,1740707531060,-1000.0,0.00057534,120]
[354801259,1740707531069,-1000.0,0.00057534,120]
[354801260,1740707531078,-951.24,0.00057534,120]
[354801261,1740707531089,-741.74,0.00057534,120]
[354801262,1740707531098,-2076.3,0.00057534,120]
[354801263,1740707531108,-500.0,0.00057534,120]
[354801264,1740707531117,-500.0,0.00057534,120]
[354801265,1740707531126,-500.0,0.00057534,120]
[354801266,1740707531136,-608.51,0.00057534,120]
[354801267,1740707531145,-1051.75,0.00057534,120]
[354801268,1740707531154,-500.0,0.00057534,120]
[354801269,1740707531164,-500.0,0.00057534,120]
[354801270,1740707531174,-1105.65,0.00057534,120]
[354801271,1740707531183,-935.9,0.00057534,120]
[354801272,1740707531192,-500.0,0.00057534,120]
[354801273,1740707531201,-500.0,0.00057534,120]
[354801274,1740707531212,-500.0,0.00057534,120]
[354801275,1740707531221,-500.0,0.00057534,120]
[354801276,1740707531230,-500.0,0.00057534,120]
[354801277,1740707531239,-1021.57,0.00057534,120]
[354801278,1740707531248,-678.63,0.00057534,120]
[354801279,1740707531257,-847.2,0.00057534,120]
[354801280,1740707531266,-500.0,0.00057534,120]
[354801281,1740707531276,-927.57,0.00057534,120]
[354801282,1740707531285,-500.0,0.00057534,120]
[354801283,1740707531294,-1273.87,0.00057534,120]
[354801284,1740707531303,-500.0,0.00057534,120]
[354801285,1740707531313,-500.0,0.00057534,120]
[354801286,1740707531322,-762.62,0.00057534,120]
[354801287,1740707531331,-840.01,0.00057534,120]
[354801288,1740707531340,-795.43,0.00057534,120]
[354801289,1740707531349,-500.0,0.00057534,120]
[354801290,1740707531358,-500.0,0.00057534,120]
[354801291,1740707531367,-575.37,0.00057534,120]
[354801292,1740707531376,-500.0,0.00057534,120]
[354801293,1740707531385,-500.0,0.00057534,120]
[354801294,1740707531395,-500.0,0.00057534,120]
[354801295,1740707531403,-500.0,0.00057534,120]
[354801296,1740707531413,-695.08,0.00057534,120]
[354801297,1740707531422,-500.0,0.00057534,120]
[354801298,1740707531430,-1111.02,0.00057534,120]
[354801299,1740707531439,-500.0,0.00057534,120]
[354801300,1740707531448,-500.0,0.00057534,120]
[354801301,1740707531457,-919.96,0.00057534,120]
[354801302,1740707531466,-500.0,0.00057534,120]
[354801303,1740707531475,-500.0,0.00057534,120]
[354801304,1740707531484,-612.37,0.00057534,120]
[354801305,1740707531493,-500.0,0.00057534,120]
[354801306,1740707531503,-639.59,0.00057534,120]
[354801307,1740707531512,-2029.62,0.00057534,120]
[354801308,1740707531522,-500.0,0.00057534,120]
[354801309,1740707531531,-790.67,0.00057534,120]
[354801310,1740707531540,-500.0,0.00057534,120]
[354801311,1740707531551,-500.0,0.00057534,120]
[354801312,1740707531562,-1308.82,0.00057534,120]
[354801313,1740707531571,-551.57,0.00057534,120]
[354801314,1740707531580,-500.0,0.00057534,7]
[354801315,1740707531590,-337.48242765,0.00057534,120]
[354801316,1740707531602,-714.61,0.00057534,120]
[354801317,1740707531612,-745.48,0.00057534,120]
[354801318,1740707531622,-646.72,0.00057534,120]
[354801319,1740707531631,-500.0,0.00057534,120]
[354801320,1740707531640,-500.0,0.00057534,120]
[354801321,1740707531650,-500.0,0.00057534,120]
[354801322,1740707531659,-500.0,0.00057534,120]
[354801323,1740707531667,-1510.89,0.00057534,120]
[354801324,1740707531677,-500.0,0.00057534,120]
[354801325,1740707531687,-500.0,0.00057534,120]
[354801326,1740707531696,-1169.82,0.00057534,120]
[354801327,1740707531705,-500.0,0.00057534,120]
[354801328,1740707531714,-2056.21,0.00057534,120]
[354801329,1740707531723,-500.0,0.00057534,120]
[354801330,1740707531732,-500.0,0.00057534,120]
[354801331,1740707531742,-1119.09,0.00057534,120]
[354801332,1740707531752,-500.0,0.00057534,120]
[354801333,1740707531761,-532.93,0.00057534,120]
[354801334,1740707531771,-500.0,0.00057534,120]
[354801335,1740707531780,-335.92064957,0.00057534,120]
[354801336,1740707531791,-500.0,0.00057534,120]
[354801337,1740707531802,-729.17,0.00057534,120]
[354801338,1740707531811,-845.3,0.00057534,120]
[354801339,1740707531820,-500.0,0.00057534,120]
[354801340,1740707531829,-886.83,0.00057534,120]
[354801341,1740707531976,-650.9,0.00057534,120]
[354801342,1740707531990,-500.0,0.00057534,120]
[354801343,1740707531999,-971.67,0.00057534,120]
[354801344,1740707532009,-511.14,0.00057534,120]
[354801345,1740707532018,-704.59,0.00057534,120]
[354801346,1740707532028,-2271.13,0.00057534,120]
[354801347,1740707532039,-150.0,0.000576,14]
[354801348,1740707532050,-2110.0,0.00057664,30]
[354801349,1740707532059,-1412.46,0.00057685,120]
[354801350,1740707532071,-1412.46,0.00057685,120]
[354801351,1740707532080,-1300.0,0.00057698,120]
[354801352,1740707532091,-1400.0,0.00057698,120]
[354801353,1740707532100,-1063.275111,0.00057699,120]
[354801354,1740707532110,-206.0,0.0005773,30]
[354801355,1740707532120,-1061.0,0.00057805,120]
[354801356,1740707532129,-190.75,0.00057808,120]
[354801357,1740707532139,-154.618068,0.00057808,120]
[354801358,1740707532148,-4105.716146,0.00057808,120]
[354801359,1740707532157,-1424.950955,0.00057808,120]
[354801360,1740707532166,-489.8778563,0.00057808,120]
[354801361,1740707532176,-500.0,0.00057808,120]
[354801362,1740707532185,-500.0,0.00057808,120]
[354801363,1740707532195,-500.0,0.00057808,120]
[354801364,1740707532204,-632.79957121,0.00057808,120]
[354801365,1740707532214,-500.0,0.00057808,120]
[354801366,1740707532223,-500.0,0.00057808,120]
[354801367,1740707532232,-176.56818747,0.00057808,120]
[354801368,1740707532242,-500.0,0.00057808,120]
[354801369,1740707532251,-3000.0,0.00057808,120]
[354801370,1740707532262,-500.0,0.00057808,120]
[354801371,1740707532271,-638.40135757,0.00057808,120]
[354801372,1740707532281,-500.0,0.00057808,120]
[354801373,1740707532292,-500.0,0.00057808,120]
[354801374,1740707532301,-570.68,0.00057808,120]
[354801375,1740707532310,-500.0,0.00057808,120]
[354801376,1740707532320,-500.0,0.00057808,120]
[354801377,1740707532330,-500.0,0.00057808,120]
[354801378,1740707532339,-509.69,0.00057808,120]
[354801379,1740707532349,-500.0,0.00057808,120]
[354801380,1740707532359,-828.19,0.00057808,120]
[354801381,1740707532370,-327.31710734,0.00057808,120]
[354801382,1740707532379,-500.0,0.00057808,120]
[354801383,1740707532390,-500.0,0.00057808,120]
[354801384,1740707532401,-500.0,0.00057808,120]
[354801385,1740707532410,-325.09938035,0.00057808,120]
[354801386,1740707532419,-500.0,0.00057808,120]
[354801387,1740707532429,-1852.03,0.00057808,120]
[354801388,1740707532438,-500.0,0.00057808,120]
[354801389,1740707532447,-500.0,0.00057808,120]
[354801390,1740707532456,-514.69,0.00057808,120]
[354801391,1740707532465,-500.0,0.00057808,120]
[354801392,1740707532475,-500.0,0.00057808,120]
[354801393,1740707532484,-500.0,0.00057808,120]
[354801394,1740707532494,-500.0,0.00057808,120]
[354801395,1740707532503,-524.44564711,0.00057808,120]
[354801396,1740707532516,-433.52221911,0.00057808,120]
[354801397,1740707532525,-500.0,0.00057808,120]
[354801398,1740707532534,-500.0,0.00057808,120]
[354801399,1740707532545,-500.0,0.00057808,120]
[354801400,1740707532555,-500.0,0.00057808,120]
[354801401,1740707532564,-500.0,0.00057808,120]
[354801402,1740707532574,-500.0,0.00057808,120]
[354801403,1740707532583,-500.0,0.00057808,120]
[354801404,1740707532594,-511.56,0.00057808,120]
[354801405,1740707532604,-500.0,0.00057808,120]
[354801406,1740707532613,-500.0,0.00057808,120]
[354801407,1740707532623,-500.0,0.00057808,120]
[354801408,1740707532633,-500.0,0.00057808,120]
[354801409,1740707532642,-500.0,0.00057808,120]
[354801410,1740707532651,-500.0,0.00057808,120]
[354801411,1740707532660,-380.53689459,0.00057808,120]
[354801412,1740707532669,-500.0,0.00057808,120]
[354801413,1740707532679,-500.0,0.00057808,120]
[354801414,1740707532688,-592.99218542,0.00057808,120]
[354801415,1740707532698,-500.0,0.00057808,120]
[354801416,1740707532707,-500.0,0.00057808,120]
[354801417,1740707532716,-500.0,0.00057808,120]
[354801418,1740707532726,-500.0,0.00057808,120]
[354801419,1740707532735,-500.0,0.00057808,120]
[354801420,1740707532744,-500.0,0.00057808,120]
[354801421,1740707532754,-500.0,0.00057808,120]
[354801422,1740707532764,-352.97202955,0.00057808,120]
[354801423,1740707532773,-500.0,0.00057808,120]
[354801424,1740707532783,-500.0,0.00057808,120]
[354801425,1740707532792,-500.0,0.00057808,120]
[354801426,1740707532803,-551.51,0.00057808,120]
[354801427,1740707532812,-1099.38,0.00057808,120]
[354801428,1740707532822,-500.0,0.00057808,120]
[354801429,1740707532831,-500.0,0.00057808,120]
[354801430,1740707532840,-447.61725933,0.00057808,120]
[354801431,1740707532850,-541.42410459,0.00057808,120]
[354801432,1740707532859,-500.0,0.00057808,120]
[354801433,1740707532868,-500.0,0.00057808,120]
[354801434,1740707532877,-500.0,0.00057808,120]
[354801435,1740707532886,-500.0,0.00057808,120]
[354801436,1740707532894,-545.15807537,0.00057808,120]
[354801437,1740707532903,-1641.04,0.00057808,120]
[354801438,1740707532912,-500.0,0.00057808,120]
[354801439,1740707532922,-759.23,0.00057808,120]
[354801440,1740707532931,-500.0,0.00057808,120]
[354801441,1740707532940,-500.0,0.00057808,120]
[354801442,1740707532949,-585.19,0.00057808,120]
[354801443,1740707532959,-500.0,0.00057808,120]
[354801444,1740707532968,-509.82,0.00057808,120]
[354801445,1740707532977,-500.0,0.00057808,120]
[354801446,1740707532986,-500.0,0.00057808,120]
[354801447,1740707532996,-500.0,0.00057808,120]
[354801448,1740707533006,-578.23,0.00057808,120]
[354801449,1740707533015,-530.22,0.00057808,120]
[354801450,1740707533026,-509.64,0.00057808,120]
[354801451,1740707533036,-500.0,0.00057808,120]
[354801452,1740707533048,-587.4,0.00057808,120]
[354801453,1740707533058,-500.0,0.00057808,120]
[354801454,1740707533067,-609.29910258,0.00057808,120]
[354801455,1740707533077,-500.0,0.00057808,120]
[354801456,1740707533087,-500.0,0.00057808,120]
[354801457,1740707533097,-500.0,0.00057808,120]
[354801458,1740707533107,-192.51815806,0.00057808,120]
[354801459,1740707533116,-600.42,0.00057808,120]
[354801460,1740707533125,-475.20580473,0.00057808,120]
[354801461,1740707533135,-500.0,0.00057808,120]
[354801462,1740707533144,-951.38,0.00057808,2]
[354801463,1740707533154,-630.94,0.00057808,120]
[354801464,1740707533163,-435.91869953,0.00057808,120]
[354801465,1740707533173,-1478.07,0.00057808,120]
[354801466,1740707533183,-291.61261855,0.00057808,120]
[354801467,1740707533192,-594.92,0.00057808,120]
[354801468,1740707533203,-768.84,0.00057808,120]
[354801469,1740707533213,-500.0,0.00057808,120]
[354801470,1740707533223,-1119.62,0.00057808,120]
[354801471,1740707533232,-580.73,0.00057808,120]
[354801472,1740707533242,-517.91,0.00057808,120]
[354801473,1740707533251,-1543.06,0.00057808,120]
[354801474,1740707533261,-533.37,0.00057808,120]
[354801475,1740707533270,-500.0,0.00057808,120]
[354801476,1740707533280,-1220.35,0.00057808,120]
[354801477,1740707533289,-744.65,0.00057808,120]
[354801478,1740707533298,-500.0,0.00057808,120]
[354801479,1740707533307,-1028.04,0.00057808,120]
[354801480,1740707533317,-500.0,0.00057808,120]
[354801481,1740707533327,-500.0,0.00057808,120]
[354801482,1740707533336,-500.0,0.00057808,30]
[354801483,1740707533346,-1097.3,0.00057808,120]
[354801484,1740707533355,-500.0,0.00057808,120]
[354801485,1740707533364,-949.11,0.00057808,120]
[354801486,1740707533373,-879.55,0.00057808,120]
[354801487,1740707533382,-500.0,0.00057808,120]
[354801488,1740707533391,-526.49,0.00057808,120]
[354801489,1740707533400,-828.91,0.00057808,120]
[354801490,1740707533409,-174.81174723,0.00057808,120]
[354801491,1740707533419,-814.83,0.00057808,120]
[354801492,1740707533428,-517.4,0.00057808,120]
[354801493,1740707533438,-852.06,0.00057808,120]
[354801494,1740707533447,-500.0,0.00057808,120]
[354801495,1740707533456,-1009.91,0.00057808,120]
[354801496,1740707533465,-730.96,0.00057808,120]
[354801497,1740707533474,-500.0,0.00057808,120]
[354801498,1740707533483,-1151.75,0.00057808,120]
[354801499,1740707533492,-500.0,0.00057808,120]
[354801500,1740707533501,-500.0,0.00057808,120]
[354801501,1740707533511,-893.14,0.00057808,120]
[354801502,1740707533520,-885.88,0.00057808,120]
[354801503,1740707533531,-566.69,0.00057808,120]
[354801504,1740707533540,-500.0,0.00057808,120]
[354801505,1740707533551,-504.0,0.00057808,120]
[354801506,1740707533561,-710.67,0.00057808,120]
[354801507,1740707533570,-726.03,0.00057808,120]
[354801508,1740707533580,-1292.45,0.00057808,100]
[354801509,1740707533589,-500.0,0.00057808,120]
[354801510,1740707533600,-715.56,0.00057808,120]
[354801511,1740707533610,-500.0,0.00057808,120]
[354801512,1740707533619,-500.0,0.00057808,120]
[354801513,1740707533628,-500.0,0.00057808,120]
[354801514,1740707533638,-500.0,0.00057808,120]
[354801515,1740707533647,-500.0,0.00057808,120]
[354801516,1740707533656,-516.93,0.00057808,120]
[354801517,1740707533665,-1000.0,0.00057808,120]
[354801518,1740707533675,-951.24,0.00057808,120]
[354801519,1740707533683,-741.74,0.00057808,120]
[354801520,1740707533693,-2076.3,0.00057808,120]
[354801521,1740707533702,-500.0,0.00057808,120]
[354801522,1740707533711,-500.0,0.00057808,120]
[354801523,1740707533720,-500.0,0.00057808,120]
[354801524,1740707533729,-608.51,0.00057808,120]
[354801525,1740707533738,-1051.75,0.00057808,120]
[354801526,1740707533747,-500.0,0.00057808,120]
[354801527,1740707533756,-500.0,0.00057808,120]
[354801528,1740707533765,-1105.65,0.00057808,120]
[354801529,1740707533774,-935.9,0.00057808,120]
[354801530,1740707533783,-639.22563339,0.00057808,120]
[354801531,1740707533792,-500.0,0.00057808,120]
[354801532,1740707533802,-358.76543614,0.00057808,120]
[354801533,1740707533811,-500.0,0.00057808,120]
[354801534,1740707533821,-500.0,0.00057808,120]
[354801535,1740707533830,-1021.57,0.00057808,120]
[354801536,1740707533839,-678.63,0.00057808,120]
[354801537,1740707533848,-847.2,0.00057808,120]
[354801538,1740707533858,-500.0,0.00057808,120]
[354801539,1740707533867,-927.57,0.00057808,120]
[354801540,1740707533876,-500.0,0.00057808,120]
[354801541,1740707533885,-1273.87,0.00057808,120]
[354801542,1740707533895,-500.0,0.00057808,120]
[354801543,1740707533903,-500.0,0.00057808,120]
[354801544,1740707533913,-762.62,0.00057808,120]
[354801545,1740707533922,-840.01,0.00057808,120]
[354801546,1740707533931,-795.43,0.00057808,120]
[354801547,1740707533940,-500.0,0.00057808,120]
[354801548,1740707533949,-500.0,0.00057808,120]
[354801549,1740707533958,-575.37,0.00057808,120]
[354801550,1740707533967,-500.0,0.00057808,120]
[354801551,1740707533977,-500.0,0.00057808,120]
[354801552,1740707533986,-616.27777409,0.00057808,120]
[354801553,1740707533996,-500.0,0.00057808,120]
[354801554,1740707534005,-695.08,0.00057808,120]
[354801555,1740707534014,-500.0,0.00057808,120]
[354801556,1740707534032,-1111.02,0.00057808,120]
[354801557,1740707534043,-473.33938575,0.00057808,120]
[354801558,1740707534053,-500.0,0.00057808,120]
[354801559,1740707534062,-919.96,0.00057808,120]
[354801560,1740707534071,-377.14732077,0.00057808,120]
[354801561,1740707534081,-500.0,0.00057808,120]
[354801562,1740707534090,-612.37,0.00057808,120]
[354801563,1740707534099,-500.0,0.00057808,120]
[354801564,1740707534109,-639.59,0.00057808,120]
[354801565,1740707534119,-2029.62,0.00057808,120]
[354801566,1740707534128,-500.0,0.00057808,120]
[354801567,1740707534138,-500.0,0.00057808,120]
[354801568,1740707534147,-790.67,0.00057808,120]
[354801569,1740707534156,-457.74044613,0.00057808,120]
[354801570,1740707534166,-1308.82,0.00057808,120]
[354801571,1740707534175,-551.57,0.00057808,120]
[354801572,1740707534352,-500.0,0.00057808,7]
[354801573,1740707534375,-714.61,0.00057808,120]
[354801574,1740707534385,-745.48,0.00057808,120]
[354801575,1740707534396,-646.72,0.00057808,120]
[354801576,1740707534406,-500.0,0.00057808,120]
[354801577,1740707534417,-500.0,0.00057808,120]
[354801578,1740707534426,-500.0,0.00057808,120]
[354801579,1740707534435,-500.0,0.00057808,120]
[354801580,1740707534445,-1510.89,0.00057808,120]
[354801581,1740707534454,-500.0,0.00057808,120]
[354801582,1740707534463,-1169.82,0.00057808,120]
[354801583,1740707534472,-500.0,0.00057808,120]
[354801584,1740707534482,-500.0,0.00057808,120]
[354801585,1740707534491,-2056.21,0.00057808,120]
[354801586,1740707534500,-500.0,0.00057808,120]
[354801587,1740707534509,-389.2411342,0.00057808,120]
[354801588,1740707534521,-1119.09,0.00057808,120]
[354801589,1740707534530,-500.0,0.00057808,120]
[354801590,1740707534539,-532.93,0.00057808,120]
[354801591,1740707534550,-500.0,0.00057808,120]
[354801592,1740707534561,-500.0,0.00057808,120]
[354801593,1740707534570,-729.17,0.00057808,120]
[354801594,1740707534580,-845.3,0.00057808,120]
[354801595,1740707534590,-500.0,0.00057808,120]
[354801596,1740707534599,-886.83,0.00057808,120]
[354801597,1740707534609,-650.9,0.00057808,120]
[354801598,1740707534618,-500.0,0.00057808,120]
[354801599,1740707534628,-971.67,0.00057808,120]
[354801600,1740707534638,-511.14,0.00057808,120]
[354801601,1740707534648,-704.59,0.00057808,120]
[354801602,1740707534657,-151.0,0.00057945,120]
[354801603,1740707534667,-1412.46,0.00057959,120]
[354801604,1740707534677,-1412.46,0.00057959,120]
[354801605,1740707534686,-50000.0,0.00058,58]
[354801606,1740707534696,-500.0,0.00058,120]
[354801607,1740707534705,-1000000.0,0.00058,120]
[354801608,1740707534714,-1000000.0,0.00058,120]
[354801609,1740707534723,-2000.0,0.00058,120]
[354801610,1740707534733,-310.345302,0.00058,120]
[354801611,1740707534742,-4105.716146,0.00058082,120]
[354801612,1740707534751,-1424.950955,0.00058082,120]
[354801613,1740707534760,-159.164146,0.00058082,120]
[354801614,1740707534769,-155.071749,0.00058082,120]
[354801615,1740707534779,-500.0,0.00058082,120]
[354801616,1740707534789,-500.0,0.00058082,120]
[354801617,1740707534801,-500.0,0.00058082,120]
[354801618,1740707534810,-500.0,0.00058082,120]
[354801619,1740707534819,-500.0,0.00058082,120]
[354801620,1740707534829,-619.49036792,0.00058082,120]
[354801621,1740707534838,-3000.0,0.00058082,120]
[354801622,1740707534848,-645.06621952,0.00058082,120]
[354801623,1740707534858,-415.06550213,0.00058082,120]
[354801624,1740707534868,-500.0,0.00058082,120]
[354801625,1740707534878,-570.68,0.00058082,120]
[354801626,1740707534889,-295.70817805,0.00058082,120]
[354801627,1740707534898,-314.73588867,0.00058082,120]
[354801628,1740707534908,-500.0,0.00058082,120]
[354801629,1740707534917,-509.69,0.00058082,120]
[354801630,1740707534927,-500.0,0.00058082,120]
[354801631,1740707534938,-828.19,0.00058082,120]
[354801632,1740707534948,-500.0,0.00058082,120]
[354801633,1740707534959,-500.0,0.00058082,120]
[354801634,1740707534968,-500.0,0.00058082,120]
[354801635,1740707534978,-500.0,0.00058082,120]
[354801636,1740707534988,-1852.03,0.00058082,120]
[354801637,1740707534998,-500.0,0.00058082,120]
[354801638,1740707535007,-500.0,0.00058082,120]
[354801639,1740707535016,-514.69,0.00058082,120]
[354801640,1740707535027,-500.0,0.00058082,120]
[354801641,1740707535038,-505.65779623,0.00058082,120]
[354801642,1740707535052,-500.0,0.00058082,120]
[354801643,1740707535063,-500.0,0.00058082,120]
[354801644,1740707535072,-500.0,0.00058082,120]
[354801645,1740707535082,-500.0,0.00058082,120]
[354801646,1740707535092,-500.0,0.00058082,120]
[354801647,1740707535101,-301.94675172,0.00058082,120]
[354801648,1740707535111,-500.0,0.00058082,120]
[354801649,1740707535121,-410.89975268,0.00058082,120]
[354801650,1740707535130,-500.0,0.00058082,120]
[354801651,1740707535140,-511.56,0.00058082,120]
[354801652,1740707535149,-500.0,0.00058082,120]
[354801653,1740707535159,-516.4180042,0.00058082,120]
[354801654,1740707535168,-500.0,0.00058082,120]
[354801655,1740707535178,-250.10368105,0.00058082,120]
[354801656,1740707535187,-500.0,0.00058082,120]
[354801657,1740707535196,-500.0,0.00058082,120]
[354801658,1740707535205,-500.0,0.00058082,120]
[354801659,1740707535215,-500.0,0.00058082,120]
[354801660,1740707535224,-500.0,0.00058082,120]
[354801661,1740707535233,-500.0,0.00058082,120]
[354801662,1740707535242,-500.0,0.00058082,120]
[354801663,1740707535252,-500.0,0.00058082,120]
[354801664,1740707535262,-500.0,0.00058082,120]
[354801665,1740707535271,-500.0,0.00058082,120]
[354801666,1740707535280,-500.0,0.00058082,120]
[354801667,1740707535290,-500.0,0.00058082,120]
[354801668,1740707535301,-500.0,0.00058082,120]
[354801669,1740707535310,-500.0,0.00058082,120]
[354801670,1740707535319,-551.51,0.00058082,120]
[354801671,1740707535329,-1099.38,0.00058082,120]
[354801672,1740707535339,-500.0,0.00058082,120]
[354801673,1740707535348,-500.0,0.00058082,120]
[354801674,1740707535358,-500.0,0.00058082,120]
[354801675,1740707535367,-500.0,0.00058082,120]
[354801676,1740707535377,-500.0,0.00058082,120]
[354801677,1740707535386,-556.27707372,0.00058082,120]
[354801678,1740707535395,-1641.04,0.00058082,120]
[354801679,1740707535404,-500.0,0.00058082,120]
[354801680,1740707535418,-759.23,0.00058082,120]
[354801681,1740707535439,-500.0,0.00058082,120]
[354801682,1740707535458,-500.0,0.00058082,120]
[354801683,1740707535478,-585.19,0.00058082,120]
[354801684,1740707535495,-500.0,0.00058082,120]
[354801685,1740707535513,-509.82,0.00058082,120]
[354801686,1740707535536,-500.0,0.00058082,120]
[354801687,1740707535558,-500.0,0.00058082,120]
[354801688,1740707535578,-500.0,0.00058082,120]
[354801689,1740707535598,-578.23,0.00058082,120]
[354801690,1740707535618,-530.22,0.00058082,120]
[354801691,1740707535634,-509.64,0.00058082,120]
[354801692,1740707535648,-500.0,0.00058082,120]
[354801693,1740707535667,-587.4,0.00058082,120]
[354801694,1740707535682,-500.0,0.00058082,120]
[354801695,1740707535698,-500.0,0.00058082,120]
[354801696,1740707535713,-500.0,0.00058082,120]
[354801697,1740707535730,-500.0,0.00058082,120]
[354801698,1740707535745,-600.42,0.00058082,120]
[354801699,1740707535760,-500.0,0.00058082,120]
[354801700,1740707535776,-951.38,0.00058082,2]
[354801701,1740707535791,-630.94,0.00058082,120]
[354801702,1740707535810,-1478.07,0.00058082,120]
[354801703,1740707535825,-594.92,0.00058082,120]
[354801704,1740707535841,-768.84,0.00058082,120]
[354801705,1740707535856,-175.90968311,0.00058082,120]
[354801706,1740707535871,-1119.62,0.00058082,120]
[354801707,1740707535885,-580.73,0.00058082,120]
[354801708,1740707535900,-517.91,0.00058082,120]
[354801709,1740707535915,-1543.06,0.00058082,120]
[354801710,1740707535929,-533.37,0.00058082,120]
[354801711,1740707535943,-500.0,0.00058082,120]
[354801712,1740707535958,-1220.35,0.00058082,120]
[354801713,1740707535973,-744.65,0.00058082,120]
[354801714,1740707535987,-500.0,0.00058082,120]
[354801715,1740707536001,-1028.04,0.00058082,120]
[354801716,1740707536014,-500.0,0.00058082,120]
[354801717,1740707536029,-500.0,0.00058082,120]
[354801718,1740707536043,-500.0,0.00058082,30]
[354801719,1740707536059,-1097.3,0.00058082,120]
[354801720,1740707536074,-373.65125975,0.00058082,120]
[354801721,1740707536088,-949.11,0.00058082,120]
[354801722,1740707536102,-879.55,0.00058082,120]
[354801723,1740707536117,-500.0,0.00058082,120]
[354801724,1740707536131,-526.49,0.00058082,120]
[354801725,1740707536146,-828.91,0.00058082,120]
[354801726,1740707536161,-814.83,0.00058082,120]
[354801727,1740707536175,-517.4,0.00058082,120]
[354801728,1740707536189,-852.06,0.00058082,120]
[354801729,1740707536203,-500.0,0.00058082,120]
[354801730,1740707536217,-1009.91,0.00058082,120]
[354801731,1740707536232,-730.96,0.00058082,120]
[354801732,1740707536247,-500.0,0.00058082,120]
[354801733,1740707536261,-1151.75,0.00058082,120]
[354801734,1740707536275,-500.0,0.00058082,120]
[354801735,1740707536290,-500.0,0.00058082,120]
[354801736,1740707536305,-893.14,0.00058082,120]
[354801737,1740707536320,-885.88,0.00058082,120]
[354801738,1740707536335,-566.69,0.00058082,120]
[354801739,1740707536349,-500.0,0.00058082,120]
[354801740,1740707536364,-504.0,0.00058082,120]
[354801741,1740707536382,-710.67,0.00058082,120]
[354801742,1740707536396,-726.03,0.00058082,120]
[354801743,1740707536413,-1292.45,0.00058082,100]
[354801744,1740707536428,-511.24376847,0.00058082,120]
[354801745,1740707536446,-715.56,0.00058082,120]
[354801746,1740707536461,-500.0,0.00058082,120]
[354801747,1740707536476,-500.0,0.00058082,120]
[354801748,1740707536492,-500.0,0.00058082,120]